Cogmind - Beta 10.2 @@@ ROGUE MODE // 2022.02.22 @ 20:04:08 Player: woegarden Result: Self-destructed Performance ------------- Evolutions (1) 500 Regions Visited (2) 400 Robots Destroyed (17) 85 Value Destroyed (484) 484 Prototype IDs (0) 0 Alien Tech Used (0) 0 Bonus (0) 0 TOTAL SCORE: 1469 Bonus ------- None Cogmind --------- Core Integrity 5/400 Matter 300/300 Energy 99/100 System Corruption 0% Temperature Cool (9) Movement Core (50) Location -9/Materials Parts ------- > --- POWER (1) -------- (None) > --- PROPULSION (4) --- (None) > --- UTILITY (2) ------ Targeting Computer > --- WEAPON (2) ------- (None) > --- INVENTORY (4) ---- Aluminum Leg Aluminum Leg High-capacity Storage Unit Assault Rifle Peak State ------------ > --- POWER ------------ Light Ion Engine > --- PROPULSION ------- Aluminum Leg Aluminum Leg Aluminum Leg Aluminum Leg > --- UTILITY ---------- High-capacity Storage Unit Targeting Computer > --- WEAPON ----------- Particle Gun > --- INVENTORY -------- Aluminum Leg Aluminum Leg EM Pulse Gun [Rating: 9] Favorites ----------- Power Ion Engine Engine Ion Engine Propulsion Aluminum Leg Leg Aluminum Leg Utility Targeting Computer Storage High-capacity Storage Unit Processor Targeting Computer Protection Improved Light Armor Plating Weapon Particle Gun Energy Gun Particle Gun Ballistic Gun Light Assault Rifle Build | -11 -10 -9 ------- Run | Scr Mat Mat Slots Evolved 2 | . . 2 Power . | . . . Propulsion 2 | . . 2 Utility . | . . . Weapon . | . . . Parts Attached 19 | 5 7 7 Power 2 | 1 . 1 Engine 2 | 1 . 1 Core . | . . . Reactor . | . . . Propulsion 6 | 2 2 2 Treads . | . . . Leg 6 | 2 2 2 Wheel . | . . . Hover . | . . . Flight . | . . . Utility 4 | 1 2 1 Device . | . . . Storage 2 | 1 1 . Processor 1 | . 1 . Hackware . | . . . Protection 1 | . . 1 Artifact . | . . . Weapon 7 | 1 3 3 Energy Gun 5 | . 3 2 Energy Cannon . | . . . Ballistic Gun 2 | 1 . 1 Ballistic Cannon . | . . . Launcher . | . . . Special Weapon . | . . . Impact Weapon . | . . . Slashing Weapon . | . . . Piercing Weapon . | . . . Special Melee Weapon . | . . . Unidentified Prototypes . | . . . Parts Lost 14 | . 4 10 Power 2 | . 1 1 Propulsion 4 | . . 4 Utility 1 | . . 1 Weapon 7 | . 3 4 Highest Loss Streak 6 | . 2 6 Average Slot Usage (%) 80 | . 93 62 Engine 10 | . 13 5 Leg 28 | . 28 28 Storage 10 | . 14 6 Processor 11 | . 11 11 Protection 1 | . . 3 Energy Gun 12 | . 17 5 Ballistic Gun 4 | . 6 1 Naked Turns . | . . . Heaviest Build 42 | 10 42 38 Greatest Support 40 | 20 20 40 Greatest Overweight (x) 2 | . 2 1 Average Overweight (x) . | . 1 . Largest Inventory Capacity 12 | 6 12 12 Average Capacity 9 | 5 10 8 Most Carried 7 | 5 7 5 Average Carried 4 | 4 4 3 Final Capacity 12 | 6 12 4 Final Carried 6 | 5 6 4 Class Distribution -------------------- 83% | Mutant 16% | Scavenger-Mutant Dominant Class ---------------- Mutant | -10/Materials Mutant | -9/Materials Resources | -11 -10 -9 ----------- Run | Scr Mat Mat Matter Collected 378 | 93 237 48 Remotely . | . . . Salvage Created 804 | 93 527 184 Parts 37 | . 27 10 Haulers Intercepted . | . . . Recyclers Shooed . | . . . Parts Field Recycled . | . . . Retrieved Matter . | . . . Parts Self-Destructed . | . . . Prevented . | . . . Kills | -11 -10 -9 ------- Run | Scr Mat Mat Combat Hostiles Destroyed 13 | . 9 4 Guns 12 | . 9 3 AOE 1 | . . 1 Classes Destroyed 4 | 1 2 1 Worker 1 | . . 1 Recycler 2 | 1 1 . Watcher 1 | . 1 . Grunt 13 | . 9 4 Best Kill Streak 3 | 1 3 3 Combat Bots Only 3 | . 2 3 Max Kills in Single Turn 1 | 1 1 1 Gunslinging . | . . . Exploded 1 | . . 1 Melee . | . . . Uniques/NPCs Destroyed . | . . . Combat | -11 -10 -9 -------- Run | Scr Mat Mat Damage Taken 1700 | . 571 1129 Core 514 | . 119 395 Absorbed by Shields . | . . . Core Remaining (%) 76 | 100 52 . Volleys Fired 69 | 13 38 18 Largest 2 | 1 2 1 Hottest 105 | 20 105 65 Shots Fired 92 | 13 61 18 Gun 92 | 13 61 18 Cannon . | . . . Launcher . | . . . Special . | . . . Kinetic 37 | 13 21 3 Thermal 36 | . 30 6 Explosive . | . . . Electromagnetic 19 | . 10 9 Robot Hit Streak 25 | 2 9 25 Robot Miss Streak 2 | 2 2 . Penetration Max . | . . . Secondary Targets . | . . . Shots Hit Robots 68 | 7 44 17 Core Hits 31 | 2 19 10 Critical Hits . | . . . Critical Kills . | . . . Critical Parts Destroyed . | . . . Melee Attacks . | . . . Impact . | . . . Slashing . | . . . Piercing . | . . . Sneak Attacks . | . . . Combat Hostiles . | . . . Follow-up Attacks . | . . . Damage Inflicted 885 | 69 526 290 Guns 832 | 69 525 238 Cannons . | . . . Explosions 48 | . . 48 Melee . | . . . Ramming 5 | . 1 4 Kinetic 219 | 69 118 32 Thermal 435 | . 298 137 Explosive . | . . . Electromagnetic 226 | . 109 117 Impact . | . . . Slashing . | . . . Piercing . | . . . Highest Corruption . | . . . Average Corruption . | . . . Corruption Purged . | . . . Overload Shots . | . . . Overflow Damage . | . . . Projectiles . | . . . Explosions . | . . . Melee . | . . . Knockbacks . | . . . Impact . | . . . Kinetic . | . . . Secondary . | . . . Self-Inflicted Damage 27 | . . 27 Shots 1 | . . 1 Rammed 2 | . 1 1 Targets Rammed 5 | . 1 4 Kicked 3 | . . 3 Crushed . | . . . Highest Temperature 219 | . 219 114 Average Temperature 63 | . 67 43 Received Heat Transfer 807 | . 321 486 Siege Activations . | . . . Robots Corrupted . | . . . Combat Hostiles . | . . . Parts Fried . | . . . Impact Corruptions . | . . . Robots Melted . | . . . Combat Hostiles . | . . . Parts Melted 1 | . . 1 Heat Transferred 1037 | . 777 260 Parts Sabotaged . | . . . Parts Stolen . | . . . Parts Stripped . | . . . Power Chain Reactions 1 | . . 1 Missiles Intercepted . | . . . Alert | -11 -10 -9 ------- Run | Scr Mat Mat Peak Influence 280 | 5 280 158 Initial 33 | . 3 33 Average 92 | . 103 107 Maximum Alert Level 1 | . 1 . Low Security (%) 91 | 100 84 100 Level 1 8 | . 15 . Level 2 . | . . . Level 3 . | . . . Level 4 . | . . . Level 5 . | . . . High Security . | . . . Max Security . | . . . Squads Dispatched 7 | . 4 3 Investigation 1 | . 1 . Extermination . | . . . Reinforcement 6 | . 3 3 Assault . | . . . Garrison . | . . . Intercept . | . . . Construction Impeded . | . . . Haulers Reinforced . | . . . Stealth | -11 -10 -9 --------- Run | Scr Mat Mat Distress Signals 5 | . 2 3 Communications Jammed . | . . . Distress Signals . | . . . Times Spotted 38 | . 17 21 Peak Tracking Total 12 | . 4 12 Tactical Retreats 1 | . . 1 Traps | -11 -10 -9 ------- Run | Scr Mat Mat Traps Triggered 1 | . 1 . Indirectly . | . . . Trap Hack Attempts . | . . . Triggered . | . . . Disarmed . | . . . Reprogrammed . | . . . Reused . | . . . Traps Extracted . | . . . Installed . | . . . Triggered . | . . . Machines | -11 -10 -9 ---------- Run | Scr Mat Mat Machines Disabled . | . . . Max in Single Turn . | . . . Machines Sabotaged . | . . . Garrisons Compromised . | . . . Overloaded Fab Kills . | . . . Fab Network Shutdowns . | . . . Hacking | -11 -10 -9 --------- Run | Scr Mat Mat Machines Accessed 1 | . 1 . Terminals 1 | . 1 . Fabricators . | . . . Repair Stations . | . . . Recycling Units . | . . . Scanalyzers . | . . . Garrison Access . | . . . Total Hacks 1 | . 1 . Successful . | . . . Failed 1 | . 1 . Catastrophic . | . . . Database Lockouts . | . . . Manual . | . . . Terminals 1 | . 1 . Fabricators . | . . . Repair Stations . | . . . Recycling Units . | . . . Scanalyzers . | . . . Garrison Access . | . . . Terminal Hacks . | . . . Fabricator Hacks . | . . . Repair Station Hacks . | . . . Recycling Unit Hacks . | . . . Scanalyzer . | . . . Garrison Access Hacks . | . . . Unauthorized Hacks . | . . . Terminals . | . . . Fabricators . | . . . Repair Stations . | . . . Recycling Units . | . . . Scanalyzers . | . . . Garrison Access . | . . . Data Cores Recovered . | . . . Used . | . . . Hacking Detections 1 | . 1 . Full Trace Events . | . . . Feedback Events . | . . . Feedback Blocked . | . . . Robot Schematics Acquired . | . . . Robots Built . | . . . Matter . | . . . Time . | . . . Total Robot Build Rating . | . . . Part Schematics Acquired . | . . . Parts Built . | . . . Matter . | . . . Time . | . . . Total Part Build Rating . | . . . Parts Repaired . | . . . Time . | . . . Parts Recycled . | . . . Recycled Matter . | . . . Retrieved Matter . | . . . Retrieved Components . | . . . Parts Scanalyzed . | . . . Part Schematics Acquired . | . . . Parts Damaged . | . . . Bothacking | -11 -10 -9 ------------ Run | Scr Mat Mat Used RIF Installer . | . . . Robots Hacked . | . . . Non-combat . | . . . Combat . | . . . Robot Hacks Applied . | . . . Relay Couplers Released . | . . . Robots Rewired . | . . . Allies Hacked . | . . . Hacks Repelled . | . . . Allies | -11 -10 -9 -------- Run | Scr Mat Mat Total Allies . | . . . Largest Group . | . . . Highest-Rated Group . | . . . Highest-Rated Ally . | . . . Total Orders . | . . . Ally Attacks . | . . . Total Damage . | . . . Kills . | . . . Allies Corrupted . | . . . Allies Melted . | . . . Intel | -11 -10 -9 ------- Run | Scr Mat Mat Robot Analysis Total . | . . . Derelict Logs Recovered . | . . . Drone Launches . | . . . Drone Recoveries . | . . . Exploration | -11 -10 -9 ------------- Run | Scr Mat Mat Turns Passed 776 | 96 402 278 Spaces Moved 445 | 57 185 203 Core 75 | 13 . 62 Treads . | . . . Legs 370 | 44 185 141 Wheels . | . . . Hover . | . . . Flight . | . . . Fastest Speed 50 | 50 120 50 Average Speed 123 | 104 153 100 Slowest Speed 180 | 120 180 150 Overloaded Moves . | . . . Propulsion Burnouts . | . . . Robots Hopped . | . . . Cave-ins Triggered . | . . . Exploration Rate (%) 21 | 5 31 27 Regions Visited 2 Branch Regions . Pre-discovered Areas . | . . . Known Exits Taken . | . . . Unknown Exits Taken 2 | 1 1 . Scrap Searched . | . . . Spaces Dug . | . . . Terrain Destroyed 2 | . . 2 Melee . | . . . Projectile . | . . . AOE 2 | . . 2 Terrain Rammed . | . . . Walls Destroyed . | . . . Machines Disabled . | . . . Actions | -11 -10 -9 --------- Run | Scr Mat Mat Total 587 | 83 247 257 Wait 26 | . 4 22 Move 443 | 56 184 203 Hop . | . . . Pick Up 20 | 9 8 3 Fast Attach 2 | 1 . 1 Attach 13 | 4 4 5 Detach . | . . . Swap 4 | . 3 1 Drop 5 | . 5 . Fire 69 | 13 38 18 Melee . | . . . Ram . | . . . Kick 5 | . 1 4 Crush . | . . . Escape Stasis . | . . . Rewire . | . . . Trap . | . . . Miscellaneous . | . . . Route ------- -11/Scrapyard -10/Materials -9/Materials (discovered 1 exit: [*Min]) History --------- Turn | Location | Event 11 | -11/Scrapyard | Discovered new exit (range 16) 97 | -11/Scrapyard | Entered Materials 309 | -10/Materials | Build established: Mutant 467 | -10/Materials | Discovered new exit (range 11) 499 | -10/Materials | Entered another Materials area 499 | -9/Materials | Evolved 2 slots: Propulsion x2 679 | -9/Materials | Discovered new exit (range 16) 701 | -9/Materials | Lost 6 parts (1p3n2w) 732 | -9/Materials | Core integrity fell below 50% 774 | -9/Materials | Core integrity fell below 20% 777 | -9/Materials | Self-destructed Last Messages --------------- 00647_ Lgt. Ion Engine destroyed. 00651_ Aluminum Leg destroyed. 00661_ Acquired Imp. Light Armor Plating. 00663_ W-16 Scout sends out distress signal. 00670_ Aluminum Leg destroyed. 00679_ EXIT=FOUND 00726_ Kicked G-34 Mercenary out of the way. 00729_ Slammed into G-34 Mercenary. 00735_ Aluminum Leg destroyed. 00739_ K-01 Serf collects debris. 00744_ Acquired Assault Rifle. 00750_ K-01 Serf cleans the Atomic Centrifuge. 00750_ Imp. Light Armor Plating destroyed. 00751_ ALERT: Hostiles spotted, dispatching reinforcements to Terminal M008. 00766_ K-01 Serf destroyed. 00769_ Acquired 8 matter. 00770_ Acquired 3 matter. 00771_ Assault Rifle destroyed. 00775_ K-01 Serf cleans the Electrolysis Chamber. Map ----- +----------------------------------------------------+ | | | | | | | | | | | | | ???????????????????????????????????????????????? | | ???????????????????????????????????????????????? | | ?????????????????????????#####?????????????????? | | ??????????????????######## #?????????????????? | | ????#######???????# #?????????????????? | | ????# ??????# ###### #?????????????????? | | ????# ??????# #????## ##?????????????????? | | ????# ?????# #?????# #########??????????? | | ????# ?????# #?????# #??????????? | | ????# ##### #?????# #??????????? | | ????# # #????##Y +??????????? | | ????# + ###????# #??????????? | | ????# # ########/######## #??????????? | | ????#####+##### # *g=#???????#??????????? | | ??????# ### # """ =T #??????????????????? | | ??????# # """ Y ##?????????????????? | | ????????## ^ # """ gg #?????????????????? | | ?????????# akYogg ##?????????????????? | | ?????????# [ # a !! #??????????????????? | | ?????????# [ # !@ #??????????????????? | | ???""????# # ! #??????????????????? | | ???""""??# ###########??????????????????? | | ??""""" # #????????????????????????????? | | ??""""" + #????????????????????????????? | | ?? """ # #????????????????????????????? | | ? ??# ] #????????????????????????????? | | # ????# ##/#######?????????????????????????? | | # ??????# # #?????????????????????????? | | ?????????# # """ #?????????????????????????? | | ?????????# # """ #?????????????????????????? | | ?????????# / """ #?????????????????????????? | | ?????????# ## #?????????????????????????? | | ?????????# ## """ #?????????????????????????? | | ?????????# ## """ #?????????????????????????? | | ?????????# ## """ #?????????????????????????? | | ?#########/## #?????????????????????????? | | ?# ?#/########?????????????????????????? | | ?# T ##%##??????????#############????????? | | ?# #% ############ """ """ #????????? | | ?# + + """"""""" #????????? | | ?? """ """ # #### ####### """"" #????????? | | ????"" """ # #??# #?????# #????????? | | ?????" """?# ####+####### #????????? | | ????? ?# # ## #????????? | +----------------------------------------------------+ Best States ------------- Heat Dissipation 28 Energy Generation 10 Energy Capacity 250 Matter Stores 300 Matter Capacity 300 Sight Range 16 Terrain Scan Density 10 Armor Coverage 150 Evasion (%) 50 Targeting Accuracy 5 Item Schematics ----------------- None Robot Schematics ------------------ None Fabricated ------------ Nothing Alien Tech Used ----------------- None Achievements -------------- None Challenges ------------ None Game ------ Seed ParticleAutogunAnalyzer Manual? 0 Play Time 00:10:21 Cumulative 33.5 hours Start 2022.02.22 @ 19:51:58 End 2022.02.22 @ 20:04:08 Sessions 1 Manual Loads 0 Difficulty Rogue Special Mode None Game No. 43 Rogue 13 Adventurer 30 Explorer 0 Win Type - Total 0 Types 0/0/0/0/0/0/0/0/0 Lore% 21 Gallery% 31 Achievement% 23 Wizard Run 0 Options --------- ASCII 0 Keyboard 0 Movement Mouse Keybinds 0 Fullscreen 2 Font 16/Proggy Map View 76x50 Tactical HUD 1 Map Filters NONE Filters NONE Steam 1 RUN: b716524f-3bed-48f6-b57b-2e48b0055d63